[Event "The Allsvenskan 2024/25 Div I 3: SS Manhem II - Linkopings ASS"]
[Site "Goteborgs Schackcentrum, Vegatan 20, Gothenburg, Sweden"]
[Date "2025.03.16"]
[Round "1.5"]
[White "Rogoz, Vladyslav"]
[Black "Bertelsen, Peter"]
[Result "1/2-1/2"]
[TimeControl "90 minutes for 40 moves + 30 minutes for the rest of the game + 30 seconds per move from move one."]
[WhiteFideId "14176521"]
[BlackFideId "1723782"]
[WhiteElo "2099"]
[BlackElo "1939"]

1. d4 {[%clk 01:30:55]} {[%emt 00:00:04]} Nf6 {[%clk 01:30:54]} {[%emt
00:00:07]} 2. c4 {[%clk 01:31:10]} {[%emt 00:00:15]} g6 {[%clk 01:31:18]}
{[%emt 00:00:06]} 3. Nc3 {[%clk 01:31:23]} {[%emt 00:00:16]} Bg7 {[%clk
01:31:42]} {[%emt 00:00:07]} 4. e4 {[%clk 01:31:35]} {[%emt 00:00:18]} d6
{[%clk 01:32:05]} {[%emt 00:00:08]} 5. f4 {[%clk 01:31:53]} {[%emt 00:00:11]}
O-O {[%clk 01:32:12]} {[%emt 00:00:22]} 6. Nf3 {[%clk 01:32:10]} {[%emt
00:00:14]} e5 {[%clk 01:28:39]} {[%emt 00:04:03]} 7. fxe5 {[%clk 01:30:03]}
{[%emt 00:02:37]} dxe5 {[%clk 01:28:54]} {[%emt 00:00:15]} 8. d5 {[%clk
01:30:18]} {[%emt 00:00:14]} a6 {[%clk 01:19:28]} {[%emt 00:09:57]} 9. Bd3
{[%clk 01:25:44]} {[%emt 00:05:05]} Qe7 {[%clk 01:17:07]} {[%emt 00:02:50]} 10.
Qe2 {[%clk 01:22:04]} {[%emt 00:04:10]} Nbd7 {[%clk 01:15:42]} {[%emt
00:01:55]} 11. O-O {[%clk 01:19:20]} {[%emt 00:03:14]} Nc5 {[%clk 01:14:14]}
{[%emt 00:01:57]} 12. Bc2 {[%clk 01:18:47]} {[%emt 00:01:03]} Bg4 {[%clk
01:14:01]} {[%emt 00:00:44]} 13. b4 {[%clk 01:15:32]} {[%emt 00:03:44]} Ncd7
{[%clk 01:10:29]} {[%emt 00:04:02]} 14. Rb1 {[%clk 01:15:42]} {[%emt 00:00:21]}
Nh5 {[%clk 01:09:48]} {[%emt 00:01:10]} 15. Bg5 {[%clk 01:08:29]} {[%emt
00:07:43]} Qxg5 {[%clk 00:57:06]} {[%emt 00:13:13]} 16. Nxg5 {[%clk 01:08:53]}
{[%emt 00:00:07]} Bxe2 {[%clk 00:57:27]} {[%emt 00:00:08]} 17. Nxe2 {[%clk
01:09:18]} {[%emt 00:00:05]} Bh6 {[%clk 00:51:39]} {[%emt 00:06:18]} 18. Nh3
{[%clk 01:08:57]} {[%emt 00:00:52]} Ng7 {[%clk 00:46:05]} {[%emt 00:06:03]} 19.
g4 {[%clk 01:08:29]} {[%emt 00:00:58]} Be3+ {[%clk 00:40:35]} {[%emt 00:06:00]}
20. Kg2 {[%clk 01:08:30]} {[%emt 00:00:29]} a5 {[%clk 00:40:09]} {[%emt
00:00:56]} 21. Rb3 {[%clk 01:08:24]} {[%emt 00:00:35]} Bd2 {[%clk 00:39:13]}
{[%emt 00:01:27]} 22. a3 {[%clk 01:07:26]} {[%emt 00:01:28]} axb4 {[%clk
00:39:12]} {[%emt 00:00:31]} 23. axb4 {[%clk 01:07:48]} {[%emt 00:00:08]} Ra2
{[%clk 00:38:43]} {[%emt 00:00:58]} 24. Bd3 {[%clk 01:07:11]} {[%emt 00:01:08]}
Ra4 {[%clk 00:37:59]} {[%emt 00:01:13]} 25. Rfb1 {[%clk 01:07:23]} {[%emt
00:00:18]} Rfa8 {[%clk 00:33:33]} {[%emt 00:04:56]} 26. Nhg1 {[%clk 01:06:39]}
{[%emt 00:01:14]} Ra3 {[%clk 00:33:31]} {[%emt 00:00:32]} 27. c5 {[%clk
01:01:07]} {[%emt 00:06:03]} Rxb3 {[%clk 00:28:00]} {[%emt 00:06:01]} 28. Rxb3
{[%clk 01:01:31]} {[%emt 00:00:07]} Ra2 {[%clk 00:28:14]} {[%emt 00:00:15]} 29.
Nf3 {[%clk 00:55:32]} {[%emt 00:06:28]} Bc1 {[%clk 00:26:29]} {[%emt 00:02:16]}
30. Kf2 {[%clk 00:54:38]} {[%emt 00:01:23]} Ne8 {[%clk 00:25:34]} {[%emt
00:01:26]} 31. Bb1 {[%clk 00:54:46]} {[%emt 00:00:22]} Rb2 {[%clk 00:25:37]}
{[%emt 00:00:27]} 32. Rxb2 {[%clk 00:54:11]} {[%emt 00:01:05]} Bxb2 {[%clk
00:26:05]} {[%emt 00:00:01]} 33. Ne1 {[%clk 00:54:18]} {[%emt 00:00:23]} Kf8
{[%clk 00:24:08]} {[%emt 00:02:28]} 34. Ke3 {[%clk 00:53:09]} {[%emt 00:01:40]}
Ke7 {[%clk 00:22:57]} {[%emt 00:01:39]} 35. Nd3 {[%clk 00:53:13]} {[%emt
00:00:26]} Ba1 {[%clk 00:19:41]} {[%emt 00:03:47]} 36. Bc2 {[%clk 00:50:59]}
{[%emt 00:02:44]} f6 {[%clk 00:19:49]} {[%emt 00:00:22]} 37. Ba4 {[%clk
00:50:57]} {[%emt 00:00:32]} Ng7 {[%clk 00:18:33]} {[%emt 00:01:46]} 38. Kd2
{[%clk 00:43:09]} {[%emt 00:08:17]} f5 {[%clk 00:16:07]} {[%emt 00:02:58]} 39.
Bxd7 {[%clk 00:43:26]} {[%emt 00:00:11]} Kxd7 {[%clk 00:14:30]} {[%emt
00:02:07]} 40. Nf2 {[%clk 00:43:34]} {[%emt 00:00:23]} f4 {[%clk 00:14:17]}
{[%emt 00:00:43]} 41. Nd3 {[%clk 00:41:57]} {[%emt 00:02:06]} g5 {[%clk
00:14:02]} {[%emt 00:00:46]} 42. Nc3 {[%clk 00:42:12]} {[%emt 00:00:15]} Ne8
{[%clk 00:12:44]} {[%emt 00:01:48]} 43. Nxe5+ {[%clk 00:41:47]} {[%emt
00:00:56]} Ke7 {[%clk 00:13:13]} {[%emt 00:00:01]} 44. Nf3 {[%clk 00:41:29]}
{[%emt 00:00:48]} Nf6 {[%clk 00:12:39]} {[%emt 00:01:03]} 45. Nxg5 {[%clk
00:40:42]} {[%emt 00:01:16]} h6 {[%clk 00:12:38]} {[%emt 00:00:33]} 46. Ne6
{[%clk 00:41:01]} {[%emt 00:00:10]} f3 {[%clk 00:10:04]} {[%emt 00:03:04]} 47.
Nd1 {[%clk 00:39:06]} {[%emt 00:02:24]} Be5 {[%clk 00:06:52]} {[%emt 00:03:42]}
48. Nf2 {[%clk 00:37:29]} {[%emt 00:02:08]} c6 {[%clk 00:06:55]} {[%emt
00:00:27]} 49. Ke3 {[%clk 00:34:33]} {[%emt 00:03:26]} cxd5 {[%clk 00:06:58]}
{[%emt 00:00:27]} 50. Nd4 {[%clk 00:34:11]} {[%emt 00:00:52]} Bxh2 {[%clk
00:00:59]} {[%emt 00:06:29]} 51. Nxf3 {[%clk 00:34:05]} {[%emt 00:00:35]} Bg3
{[%clk 00:00:37]} {[%emt 00:00:51]} 52. e5 {[%clk 00:30:00]} {[%emt 00:04:36]}
Bxf2+ {[%clk 00:30:03]} {[%emt 00:01:05]} 53. Kxf2 {[%clk 01:00:24]} {[%emt
00:00:06]} Nxg4+ {[%clk 00:30:26]} {[%emt 00:00:07]} 54. Kg3 {[%clk 01:00:50]}
{[%emt 00:00:05]} Ne3 {[%clk 00:30:15]} {[%emt 00:00:39]} 55. Nd4 {[%clk
01:00:46]} {[%emt 00:00:35]} Nc4 {[%clk 00:28:36]} {[%emt 00:02:08]} 56. Kf4
{[%clk 01:00:45]} {[%emt 00:00:31]} h5 {[%clk 00:28:15]} {[%emt 00:00:52]} 57.
Nf5+ {[%clk 01:01:04]} {[%emt 00:00:11]} Kd7 {[%clk 00:28:22]} {[%emt
00:00:23]} 58. Ng7 {[%clk 01:01:09]} {[%emt 00:00:25]} h4 {[%clk 00:25:14]}
{[%emt 00:03:38]} 59. b5 {[%clk 00:59:43]} {[%emt 00:01:56]} h3 {[%clk
00:24:57]} {[%emt 00:00:47]} 60. e6+ {[%clk 00:59:34]} {[%emt 00:00:38]} Ke7
{[%clk 00:24:54]} {[%emt 00:00:32]} 61. Kg3 {[%clk 00:59:39]} {[%emt 00:00:26]}
d4 {[%clk 00:23:15]} {[%emt 00:02:10]} 62. Nf5+ {[%clk 00:57:14]} {[%emt
00:02:55]} Kxe6 {[%clk 00:23:43]} {[%emt 00:00:02]} 63. Nxd4+ {[%clk 00:57:25]}
{[%emt 00:00:20]} Kd5 {[%clk 00:24:07]} {[%emt 00:00:05]} 64. Nb3 {[%clk
00:57:16]} {[%emt 00:00:39]} Nd2 {[%clk 00:21:32]} {[%emt 00:03:05]} 65. c6
{[%clk 00:57:06]} {[%emt 00:00:40]} bxc6 {[%clk 00:22:01]} {[%emt 00:00:01]} 66.
bxc6 {[%clk 00:55:38]} {[%emt 00:01:58]} Kxc6 {[%emt 00:00:03]} 1/2-1/2

[Event "The Allsvenskan 2024/25 Div I 3: SS Manhem II - Linkopings ASS"]
[Site "Goteborgs Schackcentrum, Vegatan 20, Gothenburg, Sweden"]
[Date "2025.03.16"]
[Round "1.6"]
[White "Jesus Saliba, Elias"]
[Black "Rosenbecker, Daniel"]
[Result "0-1"]
[TimeControl "90 minutes for 40 moves + 30 minutes for the rest of the game + 30 seconds per move from move one."]
[BlackTitle "CM"]
[WhiteFideId "1790420"]
[BlackFideId "1718959"]
[WhiteElo "1880"]
[BlackElo "2110"]

1. d4 {[%clk 01:30:41]} {[%emt 00:00:17]} d5 {[%clk 01:30:55]} {[%emt
00:00:06]} 2. c4 {[%clk 01:30:40]} {[%emt 00:00:30]} c6 {[%clk 01:31:20]}
{[%emt 00:00:06]} 3. Nc3 {[%clk 01:29:07]} {[%emt 00:02:02]} Nf6 {[%clk
01:31:43]} {[%emt 00:00:07]} 4. Nf3 {[%clk 01:26:36]} {[%emt 00:03:01]} e6
{[%clk 01:31:54]} {[%emt 00:00:20]} 5. Bg5 {[%clk 01:25:55]} {[%emt 00:01:09]}
Nbd7 {[%clk 01:32:17]} {[%emt 00:00:08]} 6. e3 {[%clk 01:25:49]} {[%emt
00:00:36]} Qa5 {[%clk 01:32:43]} {[%emt 00:00:04]} 7. Bxf6 {[%clk 01:00:33]}
{[%emt 00:25:47]} Nxf6 {[%clk 01:31:34]} {[%emt 00:01:38]} 8. Qc2 {[%clk
00:59:54]} {[%emt 00:01:09]} Be7 {[%clk 01:25:56]} {[%emt 00:06:07]} 9. cxd5
{[%clk 00:57:42]} {[%emt 00:02:42]} exd5 {[%clk 01:24:18]} {[%emt 00:02:09]} 10.
Bd3 {[%clk 00:57:48]} {[%emt 00:00:25]} O-O {[%clk 01:23:06]} {[%emt 00:01:39]}
11. O-O {[%clk 00:58:10]} {[%emt 00:00:10]} h6 {[%clk 01:12:17]} {[%emt
00:11:18]} 12. a3 {[%clk 00:53:31]} {[%emt 00:05:10]} Bd6 {[%clk 01:03:56]}
{[%emt 00:08:51]} 13. b4 {[%clk 00:51:49]} {[%emt 00:02:12]} Qd8 {[%clk
01:04:13]} {[%emt 00:00:13]} 14. Rfe1 {[%clk 00:50:43]} {[%emt 00:01:36]} Re8
{[%clk 00:56:55]} {[%emt 00:07:47]} 15. e4 {[%clk 00:48:17]} {[%emt 00:02:57]}
dxe4 {[%clk 00:57:17]} {[%emt 00:00:07]} 16. Nxe4 {[%clk 00:48:35]} {[%emt
00:00:12]} Nxe4 {[%clk 00:57:17]} {[%emt 00:00:30]} 17. Bxe4 {[%clk 00:48:58]}
{[%emt 00:00:08]} Be6 {[%clk 00:56:13]} {[%emt 00:01:34]} 18. Qd3 {[%clk
00:23:27]} {[%emt 00:26:01]} Qb6 {[%clk 00:54:58]} {[%emt 00:01:45]} 19. Ne5
{[%clk 00:20:20]} {[%emt 00:03:36]} Rad8 {[%clk 00:40:33]} {[%emt 00:14:56]} 20.
Nc4 {[%clk 00:17:57]} {[%emt 00:02:53]} Qa6 {[%clk 00:40:52]} {[%emt 00:00:11]}
21. d5 {[%clk 00:16:37]} {[%emt 00:01:49]} cxd5 {[%clk 00:39:18]} {[%emt
00:02:05]} 22. Bxd5 {[%clk 00:16:27]} {[%emt 00:00:41]} Be7 {[%clk 00:31:31]}
{[%emt 00:08:16]} 23. Bxb7 {[%clk 00:08:28]} {[%emt 00:08:30]} Qxb7 {[%clk
00:31:22]} {[%emt 00:00:38]} 24. Qe2 {[%clk 00:08:35]} {[%emt 00:00:23]} Qa6
{[%clk 00:28:31]} {[%emt 00:03:22]} 25. Ne5 {[%clk 00:06:47]} {[%emt 00:02:18]}
Qxe2 {[%clk 00:28:49]} {[%emt 00:00:11]} 26. Rxe2 {[%clk 00:07:11]} {[%emt
00:00:06]} Bf6 {[%clk 00:28:55]} {[%emt 00:00:24]} 27. Rc1 {[%clk 00:06:56]}
{[%emt 00:00:45]} Bg4 {[%clk 00:27:35]} {[%emt 00:01:51]} 28. f3 {[%clk
00:05:57]} {[%emt 00:01:29]} Bxe5 {[%clk 00:27:56]} {[%emt 00:00:08]} 29. fxg4
{[%clk 00:05:21]} {[%emt 00:01:07]} Bxh2+ {[%clk 00:28:19]} {[%emt 00:00:07]}
30. Kf1 {[%clk 00:05:43]} {[%emt 00:00:07]} Bg3 {[%clk 00:28:44]} {[%emt
00:00:05]} 31. b5 {[%clk 00:05:21]} {[%emt 00:00:53]} Kh7 {[%clk 00:28:03]}
{[%emt 00:01:09]} 32. a4 {[%clk 00:05:33]} {[%emt 00:00:19]} Kg6 {[%clk
00:28:09]} {[%emt 00:00:24]} 33. a5 {[%clk 00:04:54]} {[%emt 00:01:10]} Kg5
{[%clk 00:28:19]} {[%emt 00:00:19]} 34. b6 {[%clk 00:04:46]} {[%emt 00:00:39]}
axb6 {[%clk 00:28:41]} {[%emt 00:00:07]} 35. a6 {[%clk 00:04:28]} {[%emt
00:00:47]} Kxg4 {[%clk 00:28:46]} {[%emt 00:00:26]} 36. a7 {[%clk 00:04:01]}
{[%emt 00:00:57]} f5 {[%clk 00:27:28]} {[%emt 00:01:48]} 37. Ra1 {[%clk
00:03:39]} {[%emt 00:00:52]} Rxe2 {[%clk 00:27:25]} {[%emt 00:00:33]} 38. Kxe2
{[%clk 00:04:08]} {[%emt 00:00:01]} Ra8 {[%clk 00:27:37]} {[%emt 00:00:18]} 39.
Ra4+ {[%clk 00:04:18]} {[%emt 00:00:21]} f4 {[%clk 00:27:46]} {[%emt 00:00:20]}
40. Kd3 {[%clk 00:04:35]} {[%emt 00:00:13]} b5 {[%clk 00:27:38]} {[%emt
00:00:38]} 41. Ra6 {[%clk 00:04:23]} {[%emt 00:00:43]} g5 {[%clk 00:27:19]}
{[%emt 00:00:48]} 42. Ke4 {[%clk 00:04:05]} {[%emt 00:00:48]} Bf2 {[%clk
00:27:07]} {[%emt 00:00:41]} 0-1

[Event "The Allsvenskan 2024/25 Div I 3: SS Manhem II - Linkopings ASS"]
[Site "Goteborgs Schackcentrum, Vegatan 20, Gothenburg, Sweden"]
[Date "2025.03.16"]
[Round "1.7"]
[White "Carlsson, Ingvar"]
[Black "Almemo, Fredrik"]
[Result "1-0"]
[TimeControl "90 minutes for 40 moves + 30 minutes for the rest of the game + 30 seconds per move from move one."]
[WhiteFideId "1702670"]
[BlackFideId "1721186"]
[WhiteElo "1995"]
[BlackElo "1901"]

1. e4 {[%clk 01:30:55]} {[%emt 00:00:04]} e6 {[%clk 01:30:51]} {[%emt
00:00:10]} 2. d4 {[%clk 01:31:03]} {[%emt 00:00:21]} d5 {[%clk 01:31:14]}
{[%emt 00:00:07]} 3. Nc3 {[%clk 01:31:24]} {[%emt 00:00:09]} Nf6 {[%clk
01:31:39]} {[%emt 00:00:07]} 4. e5 {[%clk 01:31:38]} {[%emt 00:00:14]} Ne4
{[%clk 01:30:57]} {[%emt 00:01:12]} 5. Nxe4 {[%clk 01:20:12]} {[%emt 00:11:57]}
dxe4 {[%clk 01:31:12]} {[%emt 00:00:15]} 6. g3 {[%clk 01:20:21]} {[%emt
00:00:20]} c5 {[%clk 01:23:06]} {[%emt 00:08:36]} 7. Be3 {[%clk 01:14:59]}
{[%emt 00:05:54]} Nc6 {[%clk 01:14:57]} {[%emt 00:08:38]} 8. Ne2 {[%clk
01:10:16]} {[%emt 00:05:11]} Qb6 {[%clk 01:09:38]} {[%emt 00:05:50]} 9. Bg2
{[%clk 00:49:44]} {[%emt 00:21:02]} cxd4 {[%clk 00:47:34]} {[%emt 00:22:34]} 10.
Nxd4 {[%emt 00:06:40]} Nxe5 {[%emt 00:14:59]} 11. O-O {[%clk 00:35:59]} {[%emt
00:01:28]} Bc5 {[%emt 00:10:12]} 12. b4 {[%clk 00:26:23]} {[%emt 00:04:13]}
Qxb4 {[%clk 00:32:57]} {[%emt 00:03:27]} 13. Rb1 {[%clk 00:21:33]} {[%emt
00:05:19]} Qc4 {[%emt 00:04:01]} 14. Nb5 {[%emt 00:03:28]} O-O {[%emt
00:02:45]} 15. Nd6 {[%clk 00:05:50]} {[%emt 00:09:37]} Bxd6 {[%clk 00:26:43]}
{[%emt 00:04:36]} 16. Qxd6 {[%clk 00:06:17]} {[%emt 00:00:03]} Qd5 {[%clk
00:26:47]} {[%emt 00:00:27]} 17. Bc5 {[%clk 00:05:17]} {[%emt 00:01:30]} Nd7
{[%clk 00:26:52]} {[%emt 00:00:24]} 18. Ba3 {[%clk 00:05:19]} {[%emt 00:00:29]}
Re8 {[%clk 00:24:20]} {[%emt 00:03:01]} 19. Qb4 {[%clk 00:05:02]} {[%emt
00:00:48]} f5 {[%clk 00:20:35]} {[%emt 00:04:14]} 20. c4 {[%clk 00:05:22]}
{[%emt 00:00:10]} Qc6 {[%clk 00:20:13]} {[%emt 00:00:53]} 21. Rfd1 {[%clk
00:04:53]} {[%emt 00:00:58]} Ne5 {[%clk 00:17:26]} {[%emt 00:03:17]} 22. c5
{[%clk 00:04:41]} {[%emt 00:00:41]} Qc7 {[%clk 00:16:13]} {[%emt 00:01:44]} 23.
Rd6 {[%clk 00:04:32]} {[%emt 00:00:38]} Bd7 {[%clk 00:11:12]} {[%emt 00:05:34]}
24. Qd4 {[%clk 00:04:17]} {[%emt 00:00:43]} Nc6 {[%clk 00:04:11]} {[%emt
00:07:32]} 25. Rxd7 {[%clk 00:04:21]} {[%emt 00:00:25]} Nxd4 {[%clk 00:04:39]}
{[%emt 00:00:02]} 26. Rxc7 {[%clk 00:04:37]} {[%emt 00:00:14]} Rab8 {[%clk
00:04:09]} {[%emt 00:01:01]} 27. Rbxb7 {[%clk 00:04:01]} {[%emt 00:01:05]} Rxb7
{[%clk 00:04:29]} {[%emt 00:00:11]} 28. Rxb7 {[%clk 00:04:24]} {[%emt
00:00:06]} Rd8 {[%clk 00:02:20]} {[%emt 00:02:40]} 29. Bb2 {[%clk 00:03:14]}
{[%emt 00:01:40]} Nf3+ {[%clk 00:02:18]} {[%emt 00:00:31]} 30. Bxf3 {[%clk
00:03:04]} {[%emt 00:00:41]} exf3 {[%clk 00:02:47]} {[%emt 00:00:01]} 31. h4
{[%clk 00:02:19]} {[%emt 00:01:14]} Rd1+ {[%clk 00:03:14]} {[%emt 00:00:03]} 32.
Kh2 {[%clk 00:02:43]} {[%emt 00:00:06]} Rd2 {[%clk 00:03:35]} {[%emt 00:00:10]}
33. Be5 {[%clk 00:02:18]} {[%emt 00:00:54]} Rxf2+ {[%clk 00:03:36]} {[%emt
00:00:30]} 34. Kg1 {[%clk 00:01:41]} {[%emt 00:01:06]} Rxa2 {[%clk 00:03:58]}
{[%emt 00:00:08]} 35. c6 {[%clk 00:01:59]} {[%emt 00:00:13]} Re2 {[%clk
00:01:08]} {[%emt 00:03:20]} 36. c7 {[%clk 00:01:54]} {[%emt 00:00:34]} 1-0

[Event "The Allsvenskan 2024/25 Div I 3: SS Manhem II - Linkopings ASS"]
[Site "Goteborgs Schackcentrum, Vegatan 20, Gothenburg, Sweden"]
[Date "2025.03.16"]
[Round "1.8"]
[White "Lennartsson, Johan"]
[Black "Malm, Simon"]
[Result "0-1"]
[TimeControl "90 minutes for 40 moves + 30 minutes for the rest of the game + 30 seconds per move from move one."]
[WhiteFideId "1721356"]
[BlackFideId "1759825"]
[WhiteElo "1826"]
[BlackElo "1976"]

1. e4 {[%clk 01:30:56]} {[%emt 00:00:02]} c5 {[%clk 01:30:23]} {[%emt
00:00:37]} 2. a3 {[%clk 01:31:13]} {[%emt 00:00:14]} g6 {[%clk 01:30:41]}
{[%emt 00:00:12]} 3. c3 {[%clk 01:31:01]} {[%emt 00:00:42]} Nf6 {[%clk
01:27:05]} {[%emt 00:04:05]} 4. d3 {[%clk 01:27:49]} {[%emt 00:03:43]} Bg7
{[%clk 01:23:49]} {[%emt 00:03:45]} 5. Nf3 {[%clk 01:27:01]} {[%emt 00:01:19]}
O-O {[%clk 01:21:42]} {[%emt 00:02:37]} 6. Be2 {[%clk 01:24:10]} {[%emt
00:03:20]} d6 {[%clk 01:16:47]} {[%emt 00:05:26]} 7. O-O {[%clk 01:22:43]}
{[%emt 00:01:57]} a5 {[%clk 01:05:58]} {[%emt 00:11:19]} 8. Re1 {[%clk
01:22:00]} {[%emt 00:01:13]} Nc6 {[%clk 01:00:11]} {[%emt 00:06:16]} 9. a4
{[%clk 01:21:03]} {[%emt 00:01:28]} Bd7 {[%clk 00:54:32]} {[%emt 00:06:08]} 10.
Na3 {[%clk 01:17:12]} {[%emt 00:04:22]} Qb8 {[%clk 00:52:14]} {[%emt 00:02:48]}
11. Nc4 {[%clk 01:12:34]} {[%emt 00:05:08]} b5 {[%clk 00:39:17]} {[%emt
00:13:27]} 12. axb5 {[%clk 01:11:28]} {[%emt 00:01:36]} Qxb5 {[%clk 00:39:44]}
{[%emt 00:00:03]} 13. e5 {[%clk 01:08:38]} {[%emt 00:03:20]} Ne8 {[%clk
00:31:15]} {[%emt 00:08:59]} 14. d4 {[%clk 01:02:35]} {[%emt 00:06:34]} cxd4
{[%clk 00:27:12]} {[%emt 00:04:32]} 15. Nxd6 {[%clk 00:46:52]} {[%emt
00:16:13]} Qb8 {[%clk 00:26:42]} {[%emt 00:00:59]} 16. Nxe8 {[%clk 00:46:32]}
{[%emt 00:00:50]} Rxe8 {[%clk 00:26:06]} {[%emt 00:01:07]} 17. cxd4 {[%clk
00:45:32]} {[%emt 00:01:31]} Nb4 {[%clk 00:24:39]} {[%emt 00:01:56]} 18. Ng5
{[%clk 00:38:32]} {[%emt 00:07:30]} Bf5 {[%clk 00:21:58]} {[%emt 00:03:12]} 19.
Qb3 {[%clk 00:35:58]} {[%emt 00:03:01]} e6 {[%clk 00:21:31]} {[%emt 00:00:58]}
20. Bd1 {[%clk 00:29:35]} {[%emt 00:06:54]} Nd3 {[%clk 00:18:29]} {[%emt
00:03:31]} 21. Re3 {[%clk 00:25:27]} {[%emt 00:04:39]} Qxb3 {[%clk 00:16:35]}
{[%emt 00:02:24]} 22. Bxb3 {[%clk 00:25:48]} {[%emt 00:00:09]} Reb8 {[%clk
00:15:14]} {[%emt 00:01:50]} 23. Bc2 {[%clk 00:20:11]} {[%emt 00:06:07]} Nxc1
{[%clk 00:15:14]} {[%emt 00:00:30]} 24. Bxf5 {[%clk 00:18:57]} {[%emt
00:01:45]} gxf5 {[%clk 00:14:34]} {[%emt 00:01:10]} 25. Rxc1 {[%clk 00:18:00]}
{[%emt 00:01:26]} Rxb2 {[%clk 00:15:02]} {[%emt 00:00:03]} 26. Ra3 {[%clk
00:16:57]} {[%emt 00:01:32]} a4 {[%clk 00:11:28]} {[%emt 00:04:03]} 27. Kf1
{[%clk 00:15:18]} {[%emt 00:02:11]} h6 {[%clk 00:10:19]} {[%emt 00:01:38]} 28.
Nf3 {[%clk 00:15:19]} {[%emt 00:00:30]} Bf8 {[%clk 00:10:22]} {[%emt 00:00:27]}
29. Raa1 {[%clk 00:14:57]} {[%emt 00:00:51]} a3 {[%clk 00:10:10]} {[%emt
00:00:43]} 30. Ne1 {[%clk 00:13:49]} {[%emt 00:01:37]} Rd2 {[%clk 00:08:15]}
{[%emt 00:02:25]} 31. Nc2 {[%clk 00:11:59]} {[%emt 00:02:20]} Rc8 {[%clk
00:07:47]} {[%emt 00:00:59]} 32. Ra2 {[%clk 00:10:46]} {[%emt 00:01:43]} Rxd4
{[%clk 00:07:57]} {[%emt 00:00:21]} 33. Rca1 {[%clk 00:09:37]} {[%emt
00:01:38]} Ra4 {[%clk 00:04:45]} {[%emt 00:03:42]} 34. g3 {[%clk 00:08:25]}
{[%emt 00:01:42]} Rb8 {[%clk 00:03:21]} {[%emt 00:01:53]} 35. f4 {[%clk
00:05:06]} {[%emt 00:03:49]} h5 {[%clk 00:02:43]} {[%emt 00:01:08]} 36. Ke2
{[%clk 00:03:50]} {[%emt 00:01:47]} Rb3 {[%clk 00:02:21]} {[%emt 00:00:51]} 37.
Kf2 {[%clk 00:02:54]} {[%emt 00:01:26]} h4 {[%clk 00:02:11]} {[%emt 00:00:41]}
38. Kg2 {[%clk 00:01:29]} {[%emt 00:01:55]} hxg3 {[%clk 00:01:50]} {[%emt
00:00:51]} 39. hxg3 {[%clk 00:01:50]} {[%emt 00:00:09]} Kg7 {[%clk 00:01:26]}
{[%emt 00:00:54]} 40. Rd1 {[%clk 00:01:10]} {[%emt 00:01:10]} Re4 {[%clk
00:00:43]} {[%emt 00:01:13]} 41. Rd2 {[%clk 00:00:49]} {[%emt 00:00:50]} Rb2
{[%clk 00:26:19]} {[%emt 00:04:54]} 42. Na1 {[%clk 00:27:05]} {[%emt 00:04:15]}
Re1 {[%clk 00:24:13]} {[%emt 00:02:36]} 43. Raxb2 {[%clk 00:25:33]} {[%emt
00:02:02]} axb2 {[%clk 00:24:35]} {[%emt 00:00:08]} 44. Rxb2 {[%clk 00:25:52]}
{[%emt 00:00:11]} Rxa1 {[%clk 00:24:58]} {[%emt 00:00:06]} 45. Rc2 {[%clk
00:23:38]} {[%emt 00:02:44]} Bb4 {[%clk 00:22:23]} {[%emt 00:03:05]} 46. Rb2
{[%clk 00:23:28]} {[%emt 00:00:40]} Be1 {[%clk 00:21:39]} {[%emt 00:01:13]} 47.
Re2 {[%clk 00:23:20]} {[%emt 00:00:38]} Kg6 {[%clk 00:21:37]} {[%emt 00:00:33]}
48. Kh3 {[%clk 00:22:33]} {[%emt 00:01:17]} Rd1 {[%clk 00:20:58]} {[%emt
00:01:09]} 49. Rg2 {[%clk 00:20:34]} {[%emt 00:02:28]} Rd2 {[%clk 00:14:24]}
{[%emt 00:07:04]} 50. Rg1 {[%clk 00:20:38]} {[%emt 00:00:28]} Re2 {[%clk
00:14:40]} {[%emt 00:00:14]} 51. Rf1 {[%clk 00:20:05]} {[%emt 00:01:02]} Bc3
{[%clk 00:13:49]} {[%emt 00:01:21]} 52. Rg1 {[%clk 00:19:55]} {[%emt 00:00:40]}
Re1 {[%clk 00:13:30]} {[%emt 00:00:49]} 0-1